[Event "Titled Tuesday Blitz September 20 Late 2022"]
[White "Harvey, Marcus R"]
[Black "Yurovskykh, Oleksandr"]
[WhiteFideId "400092"]
[BlackFideId "14134020"]
[WhiteElo "2485"]
[BlackElo "2303"]
[Result "0-1"]
[Round "06"]
[TimeControl "180+1"]
[Date "2022.09.20"]
[WhiteClock "0:00:42"]
[BlackClock "0:00:44"]

1. Nf3 {[%clk 0:02:46]}  d5 {[%clk 0:02:59]} 2. b3 {[%clk 0:02:46]}  Bg4 {[%clk 0:02:59]} 3. Bb2 {[%clk 0:02:47]}  Bxf3 {[%clk 0:02:58]} 4. exf3 {[%clk 0:02:47]}  e6 {[%clk 0:02:59]} 5. f4 {[%clk 0:02:47]}  Nf6 {[%clk 0:02:58]} 6. Qf3 {[%clk 0:02:46]}  g6 {[%clk 0:02:56]} 7. c4 {[%clk 0:02:42]}  Bg7 {[%clk 0:02:44]} 8. cxd5 {[%clk 0:02:41]}  Qxd5 {[%clk 0:02:42]} 9. Qxd5 {[%clk 0:02:41]}  exd5 {[%clk 0:02:43]} 10. f5 {[%clk 0:02:40]}  O-O {[%clk 0:02:36]} 11. Bd3 {[%clk 0:02:23]}  Re8+ {[%clk 0:02:31]} 12. Kf1 {[%clk 0:02:23]}  Nbd7 {[%clk 0:02:29]} 13. fxg6 {[%clk 0:02:21]}  hxg6 {[%clk 0:02:30]} 14. Nc3 {[%clk 0:02:16]}  c6 {[%clk 0:02:30]} 15. h4 {[%clk 0:02:15]}  Nc5 {[%clk 0:02:14]} 16. Rh3 {[%clk 0:02:13]}  Nxd3 {[%clk 0:02:11]} 17. Rxd3 {[%clk 0:02:14]}  Ne4 {[%clk 0:01:45]} 18. f3 {[%clk 0:02:10]}  Nc5 {[%clk 0:01:38]} 19. Re3 {[%clk 0:02:10]}  Rxe3 {[%clk 0:01:37]} 20. dxe3 {[%clk 0:02:11]}  Nd3 {[%clk 0:01:37]} 21. Ke2 {[%clk 0:01:59]}  Nxb2 {[%clk 0:01:37]} 22. Kd2 {[%clk 0:01:59]}  b5 {[%clk 0:01:28]} 23. a3 {[%clk 0:01:45]}  a5 {[%clk 0:01:28]} 24. Kc2 {[%clk 0:01:44]}  Nc4 {[%clk 0:01:11]} 25. bxc4 {[%clk 0:01:43]}  dxc4 {[%clk 0:01:12]} 26. Rd1 {[%clk 0:01:23]}  b4 {[%clk 0:01:03]} 27. Na4 {[%clk 0:01:23]}  b3+ {[%clk 0:01:03]} 28. Kb1 {[%clk 0:01:22]}  c3 {[%clk 0:01:02]} 29. Rd3 {[%clk 0:01:22]}  c2+ {[%clk 0:00:51]} 30. Kc1 {[%clk 0:01:21]}  Rb8 {[%clk 0:00:51]} 31. Nb2 {[%clk 0:01:16]}  c5 {[%clk 0:00:51]} 32. Rd5 {[%clk 0:00:49]}  Bxb2+ {[%clk 0:00:43]} 33. Kxb2 {[%clk 0:00:48]}  c4 {[%clk 0:00:44]} 34. Rc5 {[%clk 0:00:48]}  Rd8 {[%clk 0:00:44]} 35. Rxc4 {[%clk 0:00:42]}  Rd1 {[%clk 0:00:44]} 0-1


[Site "https://www.chess.com"]

[Event "Titled Tuesday Blitz September 20 Late 2022"]
[White "Jobava, Baadur"]
[Black "Caruana, Fabiano"]
[WhiteFideId "13601520"]
[BlackFideId "2020009"]
[WhiteElo "2582"]
[BlackElo "2847"]
[Result "1/2-1/2"]
[Round "06"]
[TimeControl "180+1"]
[Date "2022.09.20"]
[WhiteClock "0:00:09"]
[BlackClock "0:00:17"]

1. e4 {[%clk 0:03:00]}  e5 {[%clk 0:02:59]} 2. Nf3 {[%clk 0:03:00]}  Nc6 {[%clk 0:03:00]} 3. d4 {[%clk 0:03:01]}  exd4 {[%clk 0:03:00]} 4. Nxd4 {[%clk 0:03:02]}  Nf6 {[%clk 0:03:00]} 5. Nxc6 {[%clk 0:03:02]}  bxc6 {[%clk 0:03:00]} 6. Bd3 {[%clk 0:03:03]}  d5 {[%clk 0:03:00]} 7. exd5 {[%clk 0:03:04]}  cxd5 {[%clk 0:03:00]} 8. O-O {[%clk 0:03:04]}  Be7 {[%clk 0:03:00]} 9. h3 {[%clk 0:03:05]}  O-O {[%clk 0:03:00]} 10. Nd2 {[%clk 0:03:06]}  c5 {[%clk 0:03:00]} 11. b3 {[%clk 0:03:06]}  Bb7 {[%clk 0:02:57]} 12. Re1 {[%clk 0:03:05]}  h6 {[%clk 0:02:46]} 13. Bb2 {[%clk 0:03:01]}  d4 {[%clk 0:02:43]} 14. Nc4 {[%clk 0:02:24]}  Qd5 {[%clk 0:02:39]} 15. Bf1 {[%clk 0:02:24]}  Rfe8 {[%clk 0:02:33]} 16. Na5 {[%clk 0:02:21]}  Bd6 {[%clk 0:02:20]} 17. Nxb7 {[%clk 0:02:07]}  Qxb7 {[%clk 0:02:20]} 18. Rxe8+ {[%clk 0:02:01]}  Rxe8 {[%clk 0:02:21]} 19. c3 {[%clk 0:02:01]}  dxc3 {[%clk 0:01:53]} 20. Bxc3 {[%clk 0:02:02]}  Ne4 {[%clk 0:01:53]} 21. Qf3 {[%clk 0:02:01]}  Re7 {[%clk 0:01:20]} 22. Bb2 {[%clk 0:01:42]}  Qc7 {[%clk 0:01:18]} 23. Rd1 {[%clk 0:01:33]}  Bh2+ {[%clk 0:01:01]} 24. Kh1 {[%clk 0:01:33]}  Be5 {[%clk 0:01:01]} 25. Bxe5 {[%clk 0:01:16]}  Qxe5 {[%clk 0:01:02]} 26. Bc4 {[%clk 0:01:05]}  g6 {[%clk 0:00:59]} 27. Kg1 {[%clk 0:01:05]}  Kg7 {[%clk 0:00:54]} 28. Qe3 {[%clk 0:00:59]}  Qc3 {[%clk 0:00:36]} 29. Re1 {[%clk 0:00:53]}  Qxe3 {[%clk 0:00:36]} 30. Rxe3 {[%clk 0:00:54]}  Kf6 {[%clk 0:00:36]} 31. Rf3+ {[%clk 0:00:52]}  Kg7 {[%clk 0:00:35]} 32. Re3 {[%clk 0:00:52]}  Kf6 {[%clk 0:00:36]} 33. Rf3+ {[%clk 0:00:43]}  Kg7 {[%clk 0:00:36]} 34. Rd3 {[%clk 0:00:44]}  g5 {[%clk 0:00:30]} 35. f3 {[%clk 0:00:42]}  Nf6 {[%clk 0:00:26]} 36. Rd6 {[%clk 0:00:40]}  Nd7 {[%clk 0:00:22]} 37. Rc6 {[%clk 0:00:39]}  h5 {[%clk 0:00:19]} 38. Kf2 {[%clk 0:00:38]}  h4 {[%clk 0:00:19]} 39. Rc7 {[%clk 0:00:37]}  Kf6 {[%clk 0:00:19]} 40. Rxa7 {[%clk 0:00:37]}  Ne5 {[%clk 0:00:20]} 41. Rxe7 {[%clk 0:00:38]}  Kxe7 {[%clk 0:00:20]} 42. Ke3 {[%clk 0:00:36]}  Ng6 {[%clk 0:00:20]} 43. Ke4 {[%clk 0:00:35]}  Nf4 {[%clk 0:00:21]} 44. Bf1 {[%clk 0:00:35]}  Ke6 {[%clk 0:00:20]} 45. Bc4+ {[%clk 0:00:33]}  Ke7 {[%clk 0:00:21]} 46. Kf5 {[%clk 0:00:33]}  f6 {[%clk 0:00:20]} 47. Bf1 {[%clk 0:00:32]}  Nd5 {[%clk 0:00:20]} 48. Ke4 {[%clk 0:00:26]}  Nc3+ {[%clk 0:00:20]} 49. Kf5 {[%clk 0:00:21]}  Nxa2 {[%clk 0:00:21]} 50. f4 {[%clk 0:00:21]}  gxf4 {[%clk 0:00:20]} 51. Kxf4 {[%clk 0:00:22]}  Nc3 {[%clk 0:00:17]} 52. Kg4 {[%clk 0:00:21]}  Nd5 {[%clk 0:00:17]} 53. Bc4 {[%clk 0:00:18]}  Ne3+ {[%clk 0:00:17]} 54. Kf3 {[%clk 0:00:18]}  Nc2 {[%clk 0:00:15]} 55. Kf4 {[%clk 0:00:17]}  f5 {[%clk 0:00:14]} 56. Kxf5 {[%clk 0:00:16]}  Ne3+ {[%clk 0:00:14]} 57. Kg5 {[%clk 0:00:17]}  Nxg2 {[%clk 0:00:15]} 58. Bd5 {[%clk 0:00:15]}  Ne3 {[%clk 0:00:15]} 59. Be4 {[%clk 0:00:14]}  Nf1 {[%clk 0:00:13]} 60. Kxh4 {[%clk 0:00:12]}  Nd2 {[%clk 0:00:13]} 61. Bd5 {[%clk 0:00:11]}  Kf6 {[%clk 0:00:14]} 62. Kg3 {[%clk 0:00:11]}  Nxb3 {[%clk 0:00:14]} 63. Bxb3 {[%clk 0:00:11]}  c4 {[%clk 0:00:14]} 64. Bxc4 {[%clk 0:00:11]}  Kg7 {[%clk 0:00:15]} 65. h4 {[%clk 0:00:09]}  Kh8 {[%clk 0:00:16]} 66. h5 {[%clk 0:00:09]}  Kg7 {[%clk 0:00:17]} 67. h6+ {[%clk 0:00:09]}  Kxh6 {[%clk 0:00:17]} 1/2-1/2


[Site "https://www.chess.com"]

[Event "Titled Tuesday Blitz September 20 Late 2022"]
[White "Korchmar, Vasiliy"]
[Black "Bok, Benjamin"]
[WhiteFideId "24131750"]
[BlackFideId "1017063"]
[WhiteElo "2370"]
[BlackElo "2658"]
[Result "0-1"]
[Round "06"]
[TimeControl "180+1"]
[Date "2022.09.20"]
[WhiteClock "0:00:04"]
[BlackClock "0:00:35"]

1. e4 {[%clk 0:03:00]}  c5 {[%clk 0:02:59]} 2. Nf3 {[%clk 0:03:01]}  d6 {[%clk 0:02:59]} 3. d4 {[%clk 0:03:01]}  cxd4 {[%clk 0:03:00]} 4. Nxd4 {[%clk 0:03:02]}  Nf6 {[%clk 0:03:01]} 5. Nc3 {[%clk 0:03:02]}  a6 {[%clk 0:03:01]} 6. f3 {[%clk 0:03:02]}  e5 {[%clk 0:03:01]} 7. Nb3 {[%clk 0:03:02]}  Be6 {[%clk 0:03:02]} 8. Be3 {[%clk 0:03:02]}  Be7 {[%clk 0:03:02]} 9. Qd2 {[%clk 0:03:01]}  O-O {[%clk 0:03:03]} 10. O-O-O {[%clk 0:02:59]}  Nbd7 {[%clk 0:03:04]} 11. g4 {[%clk 0:02:59]}  b5 {[%clk 0:03:04]} 12. g5 {[%clk 0:02:55]}  Nh5 {[%clk 0:03:05]} 13. Ne2 {[%clk 0:02:45]}  Nb6 {[%clk 0:03:00]} 14. Ng3 {[%clk 0:02:44]}  Nf4 {[%clk 0:03:00]} 15. h4 {[%clk 0:02:19]}  Nc4 {[%clk 0:03:00]} 16. Bxc4 {[%clk 0:02:02]}  bxc4 {[%clk 0:03:01]} 17. Na5 {[%clk 0:02:03]}  Qc7 {[%clk 0:02:59]} 18. Bxf4 {[%clk 0:01:29]}  exf4 {[%clk 0:02:59]} 19. Nh5 {[%clk 0:01:26]}  Rfb8 {[%clk 0:01:14]} 20. Qc3 {[%clk 0:01:16]}  Bf8 {[%clk 0:01:13]} 21. Nxf4 {[%clk 0:01:06]}  Rb5 {[%clk 0:01:01]} 22. Nxe6 {[%clk 0:00:58]}  fxe6 {[%clk 0:01:02]} 23. Nxc4 {[%clk 0:00:57]}  Rc5 {[%clk 0:01:00]} 24. b3 {[%clk 0:00:46]}  d5 {[%clk 0:01:00]} 25. Qe5 {[%clk 0:00:30]}  dxc4 {[%clk 0:00:56]} 26. Qxe6+ {[%clk 0:00:31]}  Kh8 {[%clk 0:00:46]} 27. Rd7 {[%clk 0:00:27]}  Qf4+ {[%clk 0:00:44]} 28. Kb1 {[%clk 0:00:25]}  cxb3 {[%clk 0:00:45]} 29. axb3 {[%clk 0:00:26]}  Rac8 {[%clk 0:00:42]} 30. Rhd1 {[%clk 0:00:05]}  Rxc2 {[%clk 0:00:38]} 31. Rf7 {[%clk 0:00:04]}  Qc1+ {[%clk 0:00:35]} 32. Rxc1 {[%clk 0:00:04]}  Rxc1+ {[%clk 0:00:35]} 0-1


[Site "https://www.chess.com"]

[Event "Titled Tuesday Blitz September 20 Late 2022"]
[White "Lin, Dachey"]
[Black "Xiong, Jeffery"]
[WhiteFideId "2029650"]
[BlackFideId "2047640"]
[WhiteElo "2313"]
[BlackElo "2714"]
[Result "0-1"]
[Round "06"]
[TimeControl "180+1"]
[Date "2022.09.20"]
[WhiteClock "0:00:03"]
[BlackClock "0:00:50"]

1. Nc3 {[%clk 0:03:00]}  c5 {[%clk 0:02:57]} 2. e4 {[%clk 0:03:01]}  Nc6 {[%clk 0:02:55]} 3. f4 {[%clk 0:02:59]}  g6 {[%clk 0:02:55]} 4. Nf3 {[%clk 0:02:59]}  Bg7 {[%clk 0:02:55]} 5. Bc4 {[%clk 0:02:57]}  d6 {[%clk 0:02:51]} 6. d3 {[%clk 0:02:54]}  Na5 {[%clk 0:02:47]} 7. O-O {[%clk 0:02:34]}  Nxc4 {[%clk 0:02:44]} 8. dxc4 {[%clk 0:02:35]}  Bxc3 {[%clk 0:02:44]} 9. bxc3 {[%clk 0:02:36]}  f5 {[%clk 0:02:39]} 10. e5 {[%clk 0:01:52]}  Nh6 {[%clk 0:02:38]} 11. exd6 {[%clk 0:01:49]}  Qxd6 {[%clk 0:02:31]} 12. Qe1 {[%clk 0:01:30]}  Nf7 {[%clk 0:02:30]} 13. Be3 {[%clk 0:01:26]}  Be6 {[%clk 0:02:30]} 14. Qe2 {[%clk 0:01:23]}  O-O-O {[%clk 0:02:23]} 15. Rfe1 {[%clk 0:01:20]}  Qc6 {[%clk 0:02:14]} 16. Kh1 {[%clk 0:01:18]}  Rd6 {[%clk 0:02:14]} 17. Bf2 {[%clk 0:01:08]}  Rhd8 {[%clk 0:02:10]} 18. Qf1 {[%clk 0:01:04]}  b6 {[%clk 0:01:57]} 19. Re3 {[%clk 0:01:03]}  Qa4 {[%clk 0:01:55]} 20. Bh4 {[%clk 0:00:59]}  Bxc4 {[%clk 0:01:46]} 21. Qf2 {[%clk 0:00:40]}  Rd1+ {[%clk 0:01:45]} 22. Re1 {[%clk 0:00:40]}  Rxa1 {[%clk 0:01:43]} 23. Rxa1 {[%clk 0:00:41]}  Rd7 {[%clk 0:01:42]} 24. Re1 {[%clk 0:00:39]}  e6 {[%clk 0:01:42]} 25. Bf6 {[%clk 0:00:37]}  Qxa2 {[%clk 0:01:39]} 26. Qh4 {[%clk 0:00:35]}  Bd5 {[%clk 0:01:19]} 27. Qxh7 {[%clk 0:00:15]}  Bxf3 {[%clk 0:01:19]} 28. gxf3 {[%clk 0:00:16]}  Qxc2 {[%clk 0:01:20]} 29. Qg8+ {[%clk 0:00:16]}  Kb7 {[%clk 0:01:20]} 30. Qe8 {[%clk 0:00:14]}  Qd3 {[%clk 0:01:14]} 31. Qxe6 {[%clk 0:00:12]}  Qxf3+ {[%clk 0:01:13]} 32. Kg1 {[%clk 0:00:12]}  Qc6 {[%clk 0:01:08]} 33. Bg5 {[%clk 0:00:05]}  a5 {[%clk 0:00:57]} 34. Qxc6+ {[%clk 0:00:04]}  Kxc6 {[%clk 0:00:58]} 35. Re6+ {[%clk 0:00:04]}  Rd6 {[%clk 0:00:59]} 36. Re7 {[%clk 0:00:04]}  Nxg5 {[%clk 0:00:51]} 37. fxg5 {[%clk 0:00:05]}  a4 {[%clk 0:00:51]} 38. c4 {[%clk 0:00:03]}  b5 {[%clk 0:00:50]} 39. cxb5+ {[%clk 0:00:03]}  Kxb5 {[%clk 0:00:50]} 0-1


[Site "https://www.chess.com"]

[Event "Titled Tuesday Blitz September 20 Late 2022"]
[White "Nasuta, Grzegorz"]
[Black "Shuvalov, Evgenij"]
[WhiteFideId "1141686"]
[BlackFideId "4187237"]
[WhiteElo "2354"]
[BlackElo "2033"]
[Result "1-0"]
[Round "06"]
[TimeControl "180+1"]
[Date "2022.09.20"]
[WhiteClock "0:00:55"]
[BlackClock "0:01:17"]

1. e4 {[%clk 0:03:00]}  e6 {[%clk 0:02:59]} 2. d4 {[%clk 0:03:01]}  d5 {[%clk 0:03:00]} 3. Nc3 {[%clk 0:03:01]}  Bb4 {[%clk 0:02:59]} 4. exd5 {[%clk 0:03:00]}  exd5 {[%clk 0:02:59]} 5. Bd3 {[%clk 0:03:00]}  Nc6 {[%clk 0:02:59]} 6. a3 {[%clk 0:03:00]}  Bxc3+ {[%clk 0:02:59]} 7. bxc3 {[%clk 0:03:01]}  Nge7 {[%clk 0:02:59]} 8. Qf3 {[%clk 0:02:59]}  Be6 {[%clk 0:02:56]} 9. Ne2 {[%clk 0:02:59]}  Qd7 {[%clk 0:02:56]} 10. Ng3 {[%clk 0:02:53]}  h5 {[%clk 0:02:49]} 11. Nxh5 {[%clk 0:02:39]}  O-O-O {[%clk 0:02:42]} 12. h3 {[%clk 0:02:15]}  Bf5 {[%clk 0:02:34]} 13. O-O {[%clk 0:02:06]}  Rdg8 {[%clk 0:02:18]} 14. Re1 {[%clk 0:01:49]}  f6 {[%clk 0:02:07]} 15. a4 {[%clk 0:01:45]}  Bxd3 {[%clk 0:01:57]} 16. cxd3 {[%clk 0:01:46]}  Nf5 {[%clk 0:01:56]} 17. Qg4 {[%clk 0:01:33]}  Nd6 {[%clk 0:01:40]} 18. Qxd7+ {[%clk 0:01:31]}  Kxd7 {[%clk 0:01:41]} 19. Nf4 {[%clk 0:01:29]}  Ne7 {[%clk 0:01:38]} 20. Ba3 {[%clk 0:01:17]}  g5 {[%clk 0:01:36]} 21. Bxd6 {[%clk 0:01:06]}  Kxd6 {[%clk 0:01:32]} 22. Re6+ {[%clk 0:01:04]}  Kd7 {[%clk 0:01:32]} 23. Rae1 {[%clk 0:01:05]}  Rh7 {[%clk 0:01:26]} 24. Nh5 {[%clk 0:01:01]}  Rxh5 {[%clk 0:01:26]} 25. Rxe7+ {[%clk 0:01:01]}  Kc8 {[%clk 0:01:26]} 26. Rf7 {[%clk 0:00:56]}  g4 {[%clk 0:01:21]} 27. hxg4 {[%clk 0:00:57]}  Rh6 {[%clk 0:01:17]} 28. Ree7 {[%clk 0:00:55]} 1-0


[Site "https://www.chess.com"]

[Event "Titled Tuesday Blitz September 20 Late 2022"]
[White "Riehle, Marco"]
[Black "Melkumyan, Hrant"]
[WhiteFideId "12904392"]
[BlackFideId "13302485"]
[WhiteElo "2462"]
[BlackElo "2604"]
[Result "0-1"]
[Round "06"]
[TimeControl "180+1"]
[Date "2022.09.20"]
[WhiteClock "0:01:46"]
[BlackClock "0:01:46"]

1. e4 {[%clk 0:03:00]}  c6 {[%clk 0:02:57]} 2. c4 {[%clk 0:03:00]}  d5 {[%clk 0:02:58]} 3. cxd5 {[%clk 0:03:01]}  cxd5 {[%clk 0:02:58]} 4. exd5 {[%clk 0:03:02]}  Nf6 {[%clk 0:02:56]} 5. Nc3 {[%clk 0:03:02]}  g6 {[%clk 0:02:57]} 6. Bc4 {[%clk 0:03:01]}  Bg7 {[%clk 0:02:57]} 7. Nf3 {[%clk 0:03:01]}  O-O {[%clk 0:02:58]} 8. O-O {[%clk 0:02:55]}  Nbd7 {[%clk 0:02:57]} 9. d3 {[%clk 0:02:54]}  a6 {[%clk 0:02:55]} 10. a4 {[%clk 0:02:54]}  b6 {[%clk 0:02:56]} 11. Re1 {[%clk 0:02:50]}  Bb7 {[%clk 0:02:56]} 12. Bg5 {[%clk 0:02:51]}  Rc8 {[%clk 0:02:46]} 13. h3 {[%clk 0:02:44]}  Nc5 {[%clk 0:02:46]} 14. b4 {[%clk 0:02:42]}  Ncd7 {[%clk 0:02:42]} 15. Qb3 {[%clk 0:02:41]}  h6 {[%clk 0:02:30]} 16. Bh4 {[%clk 0:02:38]}  g5 {[%clk 0:02:27]} 17. Bg3 {[%clk 0:02:37]}  Nh5 {[%clk 0:02:28]} 18. Be5 {[%clk 0:02:30]}  Nxe5 {[%clk 0:02:24]} 19. Nxe5 {[%clk 0:02:31]}  Nf4 {[%clk 0:02:19]} 20. Rad1 {[%clk 0:02:20]}  Qd6 {[%clk 0:02:11]} 21. Nc6 {[%clk 0:02:18]}  Bxc6 {[%clk 0:02:06]} 22. dxc6 {[%clk 0:02:19]}  Bxc3 {[%clk 0:01:57]} 23. Qxc3 {[%clk 0:02:12]}  Qxc6 {[%clk 0:01:57]} 24. f3 {[%clk 0:01:52]}  b5 {[%clk 0:01:54]} 25. axb5 {[%clk 0:01:51]}  axb5 {[%clk 0:01:54]} 26. Bxf7+ {[%clk 0:01:52]}  Rxf7 {[%clk 0:01:52]} 27. Qe5 {[%clk 0:01:50]}  Qd6 {[%clk 0:01:46]} 28. Qxb5 {[%clk 0:01:48]}  Rc2 {[%clk 0:01:46]} 29. Qe8+ {[%clk 0:01:46]}  Kg7 {[%clk 0:01:46]} 0-1


[Site "https://www.chess.com"]

[Event "Titled Tuesday Blitz September 20 Late 2022"]
[White "Rychagov, Andrey"]
[Black "Tari, Aryan"]
[WhiteFideId "4119932"]
[BlackFideId "1510045"]
[WhiteElo "2431"]
[BlackElo "2612"]
[Result "1/2-1/2"]
[Round "06"]
[TimeControl "180+1"]
[Date "2022.09.20"]
[WhiteClock "0:00:05"]
[BlackClock "0:00:03"]

1. d4 {[%clk 0:03:00]}  d5 {[%clk 0:02:57]} 2. c4 {[%clk 0:03:00]}  e6 {[%clk 0:02:58]} 3. Nf3 {[%clk 0:03:00]}  Nf6 {[%clk 0:02:58]} 4. Nc3 {[%clk 0:03:00]}  h6 {[%clk 0:02:54]} 5. e3 {[%clk 0:02:56]}  Bb4 {[%clk 0:02:53]} 6. Qa4+ {[%clk 0:02:54]}  Nc6 {[%clk 0:02:53]} 7. Bd2 {[%clk 0:02:55]}  O-O {[%clk 0:02:53]} 8. Rd1 {[%clk 0:02:55]}  Re8 {[%clk 0:02:51]} 9. Qc2 {[%clk 0:02:53]}  Bf8 {[%clk 0:02:51]} 10. Be2 {[%clk 0:02:49]}  e5 {[%clk 0:02:45]} 11. dxe5 {[%clk 0:02:43]}  Nxe5 {[%clk 0:02:46]} 12. cxd5 {[%clk 0:02:41]}  Nxd5 {[%clk 0:02:28]} 13. O-O {[%clk 0:02:33]}  Nb4 {[%clk 0:02:12]} 14. Qb1 {[%clk 0:02:25]}  c6 {[%clk 0:01:26]} 15. a3 {[%clk 0:02:15]}  Nxf3+ {[%clk 0:01:23]} 16. Bxf3 {[%clk 0:02:11]}  Na6 {[%clk 0:01:24]} 17. Ne2 {[%clk 0:02:01]}  Nc5 {[%clk 0:01:15]} 18. Bc3 {[%clk 0:01:50]}  Qg5 {[%clk 0:01:14]} 19. Ng3 {[%clk 0:01:45]}  Be6 {[%clk 0:01:08]} 20. b4 {[%clk 0:01:42]}  Na4 {[%clk 0:01:04]} 21. Bd4 {[%clk 0:01:42]}  Nb6 {[%clk 0:00:58]} 22. Ne4 {[%clk 0:01:39]}  Qb5 {[%clk 0:00:56]} 23. Nc5 {[%clk 0:01:33]}  Bc4 {[%clk 0:00:56]} 24. Rfe1 {[%clk 0:01:22]}  Na4 {[%clk 0:00:53]} 25. Nxa4 {[%clk 0:01:02]}  Qxa4 {[%clk 0:00:54]} 26. Rc1 {[%clk 0:01:01]}  Be6 {[%clk 0:00:49]} 27. Qb2 {[%clk 0:01:00]}  a5 {[%clk 0:00:48]} 28. Bc5 {[%clk 0:00:54]}  axb4 {[%clk 0:00:46]} 29. axb4 {[%clk 0:00:54]}  Qa2 {[%clk 0:00:40]} 30. Qxa2 {[%clk 0:00:47]}  Rxa2 {[%clk 0:00:40]} 31. Ra1 {[%clk 0:00:47]}  Rea8 {[%clk 0:00:37]} 32. Rxa2 {[%clk 0:00:47]}  Rxa2 {[%clk 0:00:38]} 33. Rb1 {[%clk 0:00:41]}  Bxc5 {[%clk 0:00:37]} 34. bxc5 {[%clk 0:00:41]}  Rc2 {[%clk 0:00:37]} 35. h3 {[%clk 0:00:41]}  Bc8 {[%clk 0:00:34]} 36. Bxc6 {[%clk 0:00:39]}  bxc6 {[%clk 0:00:19]} 37. Rb8 {[%clk 0:00:39]}  Rxc5 {[%clk 0:00:19]} 38. Rxc8+ {[%clk 0:00:39]}  Kh7 {[%clk 0:00:20]} 39. g4 {[%clk 0:00:39]}  h5 {[%clk 0:00:19]} 40. Kg2 {[%clk 0:00:34]}  h4 {[%clk 0:00:19]} 41. Rc7 {[%clk 0:00:30]}  Kg6 {[%clk 0:00:19]} 42. f4 {[%clk 0:00:30]}  f6 {[%clk 0:00:15]} 43. Kf3 {[%clk 0:00:29]}  Rc1 {[%clk 0:00:15]} 44. Rc8 {[%clk 0:00:22]}  Kh7 {[%clk 0:00:15]} 45. f5 {[%clk 0:00:18]}  c5 {[%clk 0:00:15]} 46. e4 {[%clk 0:00:17]}  c4 {[%clk 0:00:14]} 47. e5 {[%clk 0:00:17]}  fxe5 {[%clk 0:00:12]} 48. g5 {[%clk 0:00:18]}  Rg1 {[%clk 0:00:06]} 49. g6+ {[%clk 0:00:07]}  Kh6 {[%clk 0:00:07]} 50. Rxc4 {[%clk 0:00:07]}  Rg3+ {[%clk 0:00:06]} 51. Ke4 {[%clk 0:00:07]}  Kg5 {[%clk 0:00:04]} 52. Kxe5 {[%clk 0:00:07]}  Re3+ {[%clk 0:00:04]} 53. Re4 {[%clk 0:00:07]}  Rxh3 {[%clk 0:00:04]} 54. Ke6 {[%clk 0:00:06]}  Rf3 {[%clk 0:00:04]} 55. Kf7 {[%clk 0:00:07]}  h3 {[%clk 0:00:03]} 56. Kxg7 {[%clk 0:00:06]}  Rxf5 {[%clk 0:00:02]} 57. Re1 {[%clk 0:00:05]}  Ra5 {[%clk 0:00:03]} 58. Rg1+ {[%clk 0:00:04]}  Kh4 {[%clk 0:00:03]} 59. Kh7 {[%clk 0:00:04]}  Rh5+ {[%clk 0:00:03]} 60. Kg8 {[%clk 0:00:04]}  h2 {[%clk 0:00:04]} 61. Rh1 {[%clk 0:00:04]}  Kg3 {[%clk 0:00:03]} 62. g7 {[%clk 0:00:04]}  Kg2 {[%clk 0:00:04]} 63. Rxh2+ {[%clk 0:00:04]}  Kxh2 {[%clk 0:00:04]} 64. Kf7 {[%clk 0:00:05]}  Rh7 {[%clk 0:00:04]} 65. Kg6 {[%clk 0:00:04]}  Rh3 {[%clk 0:00:03]} 66. g8=Q {[%clk 0:00:04]}  Rg3+ {[%clk 0:00:03]} 67. Kf7 {[%clk 0:00:04]}  Rxg8 {[%clk 0:00:03]} 68. Kxg8 {[%clk 0:00:05]} 1/2-1/2


[Site "https://www.chess.com"]

[Event "Titled Tuesday Blitz September 20 Late 2022"]
[White "Salem, A.R. Saleh"]
[Black "Sokolovsky, Yahli"]
[WhiteFideId "9301348"]
[BlackFideId "2820242"]
[WhiteElo "2628"]
[BlackElo "1920"]
[Result "0-1"]
[Round "06"]
[TimeControl "180+1"]
[Date "2022.09.20"]
[WhiteClock "0:00:14"]
[BlackClock "0:00:27"]

1. d4 {[%clk 0:03:00]}  d6 {[%clk 0:02:59]} 2. e4 {[%clk 0:03:00]}  g6 {[%clk 0:02:58]} 3. h4 {[%clk 0:02:47]}  Nf6 {[%clk 0:02:53]} 4. Nc3 {[%clk 0:02:45]}  Bg7 {[%clk 0:02:52]} 5. h5 {[%clk 0:02:44]}  gxh5 {[%clk 0:02:49]} 6. Bg5 {[%clk 0:02:39]}  Nc6 {[%clk 0:02:46]} 7. Bb5 {[%clk 0:02:32]}  Bd7 {[%clk 0:02:44]} 8. Nge2 {[%clk 0:02:28]}  a6 {[%clk 0:02:43]} 9. Bxc6 {[%clk 0:02:19]}  Bxc6 {[%clk 0:02:40]} 10. Qd3 {[%clk 0:02:17]}  Qd7 {[%clk 0:02:35]} 11. O-O-O {[%clk 0:02:12]}  Qg4 {[%clk 0:02:31]} 12. f4 {[%clk 0:01:37]}  h6 {[%clk 0:02:03]} 13. Rh4 {[%clk 0:01:25]}  Qd7 {[%clk 0:01:58]} 14. Bxf6 {[%clk 0:01:20]}  Bxf6 {[%clk 0:01:59]} 15. Rxh5 {[%clk 0:01:20]}  Qg4 {[%clk 0:01:59]} 16. Rdh1 {[%clk 0:01:14]}  O-O-O {[%clk 0:01:54]} 17. Qf3 {[%clk 0:01:04]}  Rdg8 {[%clk 0:01:42]} 18. Qxg4+ {[%clk 0:01:04]}  Rxg4 {[%clk 0:01:43]} 19. g3 {[%clk 0:01:04]}  Bg7 {[%clk 0:01:36]} 20. Kd2 {[%clk 0:01:04]}  e6 {[%clk 0:01:29]} 21. R1h2 {[%clk 0:01:03]}  Be8 {[%clk 0:01:24]} 22. R5h3 {[%clk 0:01:00]}  f5 {[%clk 0:01:24]} 23. e5 {[%clk 0:00:44]}  c5 {[%clk 0:01:13]} 24. dxc5 {[%clk 0:00:21]}  dxe5 {[%clk 0:01:13]} 25. Rh4 {[%clk 0:00:22]}  Rxh4 {[%clk 0:01:07]} 26. Rxh4 {[%clk 0:00:23]}  Bc6 {[%clk 0:01:03]} 27. Ke3 {[%clk 0:00:23]}  h5 {[%clk 0:00:55]} 28. b4 {[%clk 0:00:21]}  Bf6 {[%clk 0:00:54]} 29. Rh2 {[%clk 0:00:21]}  h4 {[%clk 0:00:53]} 30. gxh4 {[%clk 0:00:18]}  exf4+ {[%clk 0:00:53]} 31. Kxf4 {[%clk 0:00:17]}  Bxh4 {[%clk 0:00:49]} 32. Rh3 {[%clk 0:00:12]}  Bg5+ {[%clk 0:00:38]} 33. Kg3 {[%clk 0:00:13]}  f4+ {[%clk 0:00:28]} 34. Kg4 {[%clk 0:00:13]}  Rxh3 {[%clk 0:00:28]} 35. Kxh3 {[%clk 0:00:14]}  f3 {[%clk 0:00:29]} 36. Nd4 {[%clk 0:00:14]}  f2 {[%clk 0:00:27]} 0-1


[Site "https://www.chess.com"]